fUSD/lending_fUSD_20250126
["ID","MTS","AMOUNT","RATE_DAILY","PERIOD"]
[350493377,1737924663460,-500.0,0.00011999,2]
[350493378,1737924663469,-500.0,0.00011999,2]
[350493379,1737924663478,-500.0,0.00011999,2]
[350493380,1737924663487,-500.0,0.00011999,2]
[350493381,1737924663497,-546.36,0.00011999,2]
[350493382,1737924663507,-500.0,0.00011999,2]
[350493383,1737924663516,-500.0,0.00011999,2]
[350493384,1737924663525,-500.0,0.00011999,2]
[350493385,1737924663534,-500.0,0.00011999,2]
[350493386,1737924663544,-443.7022487,0.00011999,2]
[350493387,1737924663553,-500.0,0.00011999,2]
[350493388,1737924663562,-500.0,0.00011999,2]
[350493389,1737924663572,-253.99689761,0.00011999,2]
[350493390,1737924663581,-500.0,0.00011999,2]
[350493391,1737924663590,-500.0,0.00011999,2]
[350493392,1737924663599,-500.0,0.00011999,2]
[350493393,1737924663608,-500.0,0.00011999,2]
[350493394,1737924663617,-500.0,0.00011999,2]
[350493395,1737924663626,-500.0,0.00011999,2]
[350493396,1737924663636,-273.15,0.00011999,2]
[350493397,1737924663645,-500.0,0.00011999,2]
[350493398,1737924663654,-500.0,0.00011999,2]
[350493399,1737924663664,-500.0,0.00011999,2]
[350493400,1737924663673,-500.0,0.00011999,2]
[350493401,1737924663682,-333.28,0.00011999,2]
[350493402,1737924663692,-500.0,0.00011999,2]
[350493403,1737924663702,-500.0,0.00011999,2]
[350493404,1737924663712,-564.81,0.00011999,2]
[350493405,1737924663721,-500.0,0.00011999,2]
[350493406,1737924663732,-564.81,0.00011999,2]
[350493407,1737924663743,-500.0,0.00011999,2]
[350493408,1737924663752,-564.81,0.00011999,2]
[350493409,1737924663762,-500.0,0.00011999,2]
[350493410,1737924663771,-564.81,0.00011999,2]
[350493411,1737924663782,-225.97059975,0.00011999,2]
[350493412,1737924663791,-564.81,0.00011999,2]
[350493413,1737924663800,-500.0,0.00011999,2]
[350493414,1737924663810,-564.81,0.00011999,2]
[350493415,1737924663820,-500.0,0.00011999,2]
[350493416,1737924663828,-564.81,0.00011999,2]
[350493417,1737924663838,-500.0,0.00011999,2]
[350493418,1737924663847,-564.81,0.00011999,2]
[350493419,1737924663857,-500.0,0.00011999,2]
[350493420,1737924663866,-564.81,0.00011999,2]
[350493421,1737924663876,-500.0,0.00011999,2]
[350493422,1737924663885,-564.81,0.00011999,2]
[350493423,1737924663894,-500.0,0.00011999,2]
[350493424,1737924663904,-564.81,0.00011999,2]
[350493425,1737924663913,-564.81,0.00011999,2]
[350493426,1737924663922,-564.81,0.00011999,2]
[350493427,1737924663931,-500.0,0.00011999,2]
[350493428,1737924663943,-564.81,0.00011999,2]
[350493429,1737924663956,-500.0,0.00011999,2]
[350493430,1737924663965,-564.81,0.00011999,2]
[350493431,1737924663974,-500.0,0.00011999,2]
[350493432,1737924663984,-564.81,0.00011999,2]
[350493433,1737924663994,-588.71,0.00011999,2]
[350493434,1737924664003,-564.81,0.00011999,2]
[350493435,1737924664012,-588.71,0.00011999,2]
[350493436,1737924664021,-564.81,0.00011999,2]
[350493437,1737924664030,-588.71,0.00011999,2]
[350493438,1737924664040,-564.81,0.00011999,2]
[350493439,1737924664049,-588.71,0.00011999,2]
[350493440,1737924664059,-500.0,0.00011999,2]
[350493441,1737924664069,-564.81,0.00011999,2]
[350493442,1737924664078,-500.0,0.00011999,2]
[350493443,1737924664088,-588.71,0.00011999,2]
[350493444,1737924664098,-564.93,0.00011999,2]
[350493445,1737924664108,-500.0,0.00011999,2]
[350493446,1737924664117,-588.71,0.00011999,2]
[350493447,1737924664127,-583732.94321708,0.00012,2]
[350493448,1737924664417,-687.94347,0.00012,2]
[350493449,1737924664429,-5565.32075495,0.00012,2]
[350493450,1737924664441,-4736.48044118,0.00012,2]
[350493451,1737924664452,-290.92983713,0.00012,2]
[350493452,1737924664464,-110609.1535436,0.00012,2]
[350493453,1737924664495,-500.0,0.00011799,2]
[350493454,1737924664505,-500.0,0.00011998,2]
[350493455,1737924664515,-5729.4,0.00012,2]
[350493456,1737924664923,-500.0,0.00011799,2]
[350493457,1737924664933,-350.64248,0.00011799,2]
[350493458,1737924664943,-500.0,0.00011799,2]
[350493459,1737924664952,-350.64248,0.00011799,2]
[350493460,1737924664961,-46.51504,0.00011799,2]
[350493461,1737924664973,-282.829833,0.00011799,2]
[350493462,1737924664985,-170.655127,0.00011799,2]
[350493463,1737924664994,-85.43711303,0.00011799,2]
[350493464,1737924665005,-414.56288697,0.00011799,2]
[350493465,1737924665015,-600.89065823,0.00011899,2]
[350493466,1737924665024,-500.0,0.00011997,2]
[350493467,1737924665033,-350.64248,0.00011997,2]
[350493468,1737924665043,-500.0,0.00011998,2]
[350493469,1737924665052,-500.0,0.00011998,2]
[350493470,1737924665061,-256.77986088,0.00011998,2]
[350493471,1737924665072,-243.22013912,0.00011998,2]
[350493472,1737924665082,-350.64248,0.00011998,2]
[350493473,1737924665091,-350.64248,0.00011998,2]
[350493474,1737924665100,-449.74490088,0.00011999,2]
[350493475,1737924665120,-334.0,0.00011899,2]
[350493476,1737924665131,-166.0,0.00011899,2]
[350493477,1737924665140,-138.96509912,0.00011999,2]
[350493478,1737924665149,-257.27428573,0.00011999,2]
[350493479,1737924665158,-588.71,0.00011999,2]
[350493480,1737924665167,-588.71,0.00011999,2]
[350493481,1737924665177,-330.34061515,0.00011999,2]
[350493482,1737924665188,-169.65938485,0.00011999,2]
[350493483,1737924665197,-333.81414786,0.00011999,2]
[350493484,1737924665208,-254.89585214,0.00011999,2]
[350493485,1737924665218,-161.56117729,0.00011999,2]
[350493486,1737924665229,-356.21430667,0.00011999,2]
[350493487,1737924665267,-500.0,0.00011799,2]
[350493488,1737924665276,-70.93451604,0.00011999,2]
[350493489,1737924665286,-485.40865396,0.00011999,2]
[350493490,1737924665297,-103.30134604,0.00011999,2]
[350493491,1737924665306,-500.0,0.00011999,2]
[350493492,1737924665316,-588.71,0.00011999,2]
[350493493,1737924665325,-588.71,0.00011999,2]
[350493494,1737924665335,-500.0,0.00011999,2]
[350493495,1737924665345,-588.71,0.00011999,2]
[350493496,1737924665354,-500.0,0.00011999,2]
[350493497,1737924665363,-350.64248,0.00011999,2]
[350493498,1737924665372,-588.71,0.00011999,2]
[350493499,1737924665382,-9918.78763496,0.00012,2]
[350493500,1737924665393,-1581.57987107,0.00012,2]
[350493501,1737924665404,-21947.859396,0.00012,2]
[350493502,1737924665415,-3783.31642,0.00012,2]
[350493503,1737924665426,-1797.14480292,0.00012,2]
[350493504,1737924665439,-1526.43607782,0.00012,2]
[350493505,1737924665450,-4144.86206469,0.00012,2]
[350493506,1737924665461,-2291.851,0.00012,2]
[350493507,1737924665481,-500.0,0.00011999,2]
[350493508,1737924665495,-261.25738331,0.00012,2]
[350493509,1737924665507,-27045.5275716,0.00012,2]
[350493510,1737924665518,-1325.2359382,0.00012,2]
[350493511,1737924666076,5229.84988236,9.581e-05,7]
[350493512,1737924666132,20933.58441213,9.581e-05,7]
[350493513,1737924666162,14562.26889772,9.581e-05,7]
[350493514,1737924666208,93580.04051315,9.581e-05,7]
[350493515,1737924669432,152.98,9.25e-05,2]
[350493531,1737924998720,150.0,0.0001052,5]
[350493532,1737925357072,307.04,0.00016658,30]
[350493536,1737925753085,-150.62,0.00010597,2]
[350493537,1737925753106,-250.0,0.0001065,2]
[350493538,1737925753127,-250.0,0.00010697,2]
[350493539,1737925753150,-200.28,0.0001074,2]
[350493540,1737925753171,-1000.0,0.00010791,2]
[350493542,1737925788068,375.012706,0.00022,120]
[350493543,1737925814840,152.98,8.83e-05,2]
[350493549,1737925832025,-183.8,0.00010801,2]
[350493550,1737925832035,-816.29,0.00010813,2]
[350493551,1737925832081,-6450.3,0.00010813,2]
[350493552,1737925832091,-500.0,0.00010932,2]
[350493553,1737925832100,-150.0,0.00010959,2]
[350493554,1737925832109,-5643.45,0.00010995,2]
[350493555,1737925832119,-10480.0,0.00011,2]
[350493556,1737925832128,-150.0,0.00011075,2]
[350493557,1737925832137,-247.84,0.00011076,2]
[350493558,1737925832147,-249.37,0.00011076,2]
[350493559,1737925832156,-247.21,0.00011076,2]
[350493560,1737925832165,-252.67,0.00011076,2]
[350493561,1737925832174,-252.44,0.00011076,2]
[350493562,1737925832183,-113.89639186,0.00011076,2]
[350493563,1737925832203,-133.23360814,0.00011076,2]
[350493564,1737925832212,-253.53,0.00011076,2]
[350493565,1737925832221,-245.34,0.00011076,2]
[350493566,1737925832230,-245.99,0.00011076,2]
[350493567,1737925832240,-252.72,0.00011076,2]
[350493568,1737925832249,-254.92,0.00011076,2]
[350493569,1737925832263,-245.39,0.00011076,2]
[350493570,1737925832272,-253.72,0.00011076,2]
[350493571,1737925832281,-215.37809186,0.00011076,2]
[350493572,1737925832293,-42.40870144,0.00011076,2]
[350493573,1737925832302,-152.98,0.0001122,2]
[350493574,1737925832311,-1877.61129856,0.00011281,2]
[350493575,1737925832332,-3839.93870144,0.00011281,2]
[350493576,1737925832341,-1838.57,0.00011281,2]
[350493577,1737925832350,-150.99,0.00011281,2]
[350493578,1737925832359,-170.75,0.00011398,2]
[350493579,1737925832369,-442.9258,0.00011693,2]
[350493580,1737925832378,-4239.10089109,0.00011698,2]
[350493581,1737925832387,-2042.3182,0.00011699,2]
[350493582,1737925832397,-5000.0,0.00011699,2]
[350493583,1737925832407,-1000.0,0.000117,2]
[350493584,1737925832416,-4239.10089106,0.0001172,2]
[350493585,1737925832425,-4239.10089106,0.00011743,2]
[350493586,1737925832435,-4239.10089106,0.00011765,2]
[350493587,1737925832445,-500.0,0.00011772,2]
[350493588,1737925832454,-834.349,0.00011776,2]
[350493589,1737925832464,-4239.10089106,0.00011788,2]
[350493590,1737925832474,-387.217,0.00011793,2]
[350493591,1737925832484,-727.558,0.00011793,2]
[350493592,1737925832493,-231.777,0.00011793,2]
[350493593,1737925832502,-567.0,0.00011793,2]
[350493594,1737925832513,-538.0,0.00011793,2]
[350493595,1737925832523,-3414.354,0.00011793,2]
[350493596,1737925832533,-500.0,0.00011797,2]
[350493597,1737925832542,-500.0,0.00011797,2]
[350493598,1737925832552,-500.0,0.00011797,2]
[350493599,1737925832561,-500.0,0.00011797,2]
[350493600,1737925832571,-500.0,0.00011797,2]
[350493601,1737925832580,-500.0,0.00011797,2]
[350493602,1737925832590,-500.0,0.00011797,2]
[350493603,1737925832599,-500.0,0.00011797,2]
[350493604,1737925832609,-500.0,0.00011797,2]
[350493605,1737925832619,-500.0,0.00011797,2]
[350493606,1737925832628,-500.0,0.00011797,2]
[350493607,1737925832637,-500.0,0.00011797,2]
[350493608,1737925832646,-500.0,0.00011797,2]
[350493609,1737925832656,-500.0,0.00011797,2]
[350493610,1737925832665,-500.0,0.00011797,2]
[350493611,1737925832674,-500.0,0.00011797,2]
[350493612,1737925832684,-500.0,0.00011797,2]
[350493613,1737925832693,-500.0,0.00011797,2]
[350493614,1737925832703,-500.0,0.00011797,2]
[350493615,1737925832712,-500.0,0.00011797,2]
[350493616,1737925832722,-500.0,0.00011797,2]
[350493618,1737925832732,-500.0,0.00011797,2]
[350493620,1737925832741,-500.0,0.00011797,2]
[350493621,1737925832751,-500.0,0.00011797,2]
[350493622,1737925832761,-500.0,0.00011797,2]
[350493623,1737925832771,-500.0,0.00011797,2]
[350493624,1737925832780,-500.0,0.00011797,2]
[350493625,1737925832789,-500.0,0.00011797,2]
[350493627,1737925832799,-500.0,0.00011797,2]
[350493629,1737925832808,-500.0,0.00011797,2]
[350493630,1737925832817,-500.0,0.00011797,2]
[350493632,1737925832827,-500.0,0.00011797,2]
[350493633,1737925832836,-500.0,0.00011797,2]
[350493634,1737925832845,-500.0,0.00011797,2]
[350493636,1737925832854,-500.0,0.00011797,2]
[350493638,1737925832863,-500.0,0.00011797,2]
[350493640,1737925832872,-500.0,0.00011797,2]
[350493642,1737925832881,-500.0,0.00011797,2]
[350493644,1737925832890,-500.0,0.00011797,2]
[350493646,1737925832899,-500.0,0.00011797,2]
[350493648,1737925832908,-500.0,0.00011797,2]
[350493650,1737925832917,-537.391749,0.00011797,2]
[350493652,1737925832927,-500.0,0.00011797,2]
[350493654,1737925832936,-500.0,0.00011797,2]
[350493656,1737925832945,-500.0,0.00011797,2]
[350493658,1737925832955,-500.0,0.00011797,2]
[350493660,1737925832964,-500.0,0.00011797,2]
[350493662,1737925832974,-500.0,0.00011797,2]
[350493664,1737925832983,-156.348041,0.00011797,2]
[350493666,1737925832992,-500.0,0.00011797,2]
[350493668,1737925833003,-500.0,0.00011797,2]
[350493670,1737925833013,-500.0,0.00011797,2]
[350493672,1737925833023,-500.0,0.00011797,2]
[350493673,1737925833032,-500.0,0.00011797,2]
[350493675,1737925833041,-260.37855762,0.00011797,2]
[350493677,1737925833050,-500.0,0.00011797,2]
[350493679,1737925833059,-500.0,0.00011797,2]
[350493682,1737925833069,-505.04378086,0.00011798,2]
[350493684,1737925833079,-500.0,0.00011798,2]
[350493686,1737925833088,-500.0,0.00011798,2]
[350493687,1737925833098,-500.0,0.00011798,2]
[350493690,1737925833108,-500.0,0.00011798,2]
[350493692,1737925833117,-500.0,0.00011798,2]
[350493694,1737925833128,-346.98461568,0.00011798,2]
[350493696,1737925833137,-500.0,0.00011798,2]
[350493697,1737925833147,-500.0,0.00011798,2]
[350493699,1737925833156,-300.88918397,0.00011798,2]
[350493701,1737925833166,-500.0,0.00011798,2]
[350493703,1737925833176,-500.0,0.00011798,2]
[350493705,1737925833186,-500.0,0.00011798,2]
[350493707,1737925833195,-500.0,0.00011798,2]
[350493709,1737925833205,-357.15118505,0.00011798,2]
[350493711,1737925833214,-500.0,0.00011798,2]
[350493713,1737925833224,-500.0,0.00011798,2]
[350493715,1737925833233,-500.0,0.00011798,2]
[350493717,1737925833242,-500.0,0.00011798,2]
[350493719,1737925833251,-500.0,0.00011798,2]
[350493721,1737925833264,-500.0,0.00011798,2]
[350493723,1737925833274,-500.0,0.00011798,2]
[350493725,1737925833284,-500.0,0.00011798,2]
[350493727,1737925833295,-500.0,0.00011798,2]
[350493729,1737925833303,-500.0,0.00011798,2]
[350493731,1737925833312,-500.0,0.00011798,2]
[350493733,1737925833321,-516.75959952,0.00011798,2]
[350493735,1737925833330,-500.0,0.00011798,2]
[350493737,1737925833341,-322.50070724,0.00011798,2]
[350493762,1737925833350,-500.0,0.00011798,2]
[350493764,1737925833575,-446.02850379,0.00011798,2]
[350493766,1737925833585,-500.0,0.00011798,2]
[350493768,1737925833594,-500.0,0.00011798,2]
[350493770,1737925833604,-500.0,0.00011798,2]
[350493772,1737925833614,-500.0,0.00011798,2]
[350493774,1737925833623,-500.0,0.00011798,2]
[350493777,1737925833633,-211.2946142,0.00011798,2]
[350493779,1737925833643,-500.0,0.00011798,2]
[350493781,1737925833652,-480.98590764,0.00011798,2]
[350493783,1737925833661,-500.0,0.00011798,2]
[350493785,1737925833671,-500.0,0.00011798,2]
[350493787,1737925833680,-500.0,0.00011798,2]
[350493789,1737925833689,-419.50849611,0.00011798,2]
[350493791,1737925833699,-500.0,0.00011798,2]
[350493793,1737925833708,-500.0,0.00011798,2]
[350493795,1737925833717,-439.64917689,0.00011798,2]
[350493797,1737925833726,-500.0,0.00011798,2]
[350493799,1737925833735,-500.0,0.00011798,2]
[350493801,1737925833745,-500.0,0.00011798,2]
[350493803,1737925833754,-500.0,0.00011798,2]
[350493805,1737925833764,-500.0,0.00011798,2]
[350493807,1737925833774,-310.1797961,0.00011798,2]
[350493809,1737925833782,-500.0,0.00011798,2]
[350493811,1737925833791,-500.0,0.00011798,2]
[350493813,1737925833801,-500.0,0.00011798,2]
[350493815,1737925833810,-500.0,0.00011798,2]
[350493817,1737925833819,-500.0,0.00011798,2]
[350493819,1737925833829,-500.0,0.00011798,2]
[350493821,1737925833838,-500.0,0.00011798,2]
[350493823,1737925833847,-500.0,0.00011798,2]
[350493825,1737925833856,-500.0,0.00011798,2]
[350493827,1737925833865,-500.0,0.00011798,2]
[350493829,1737925833874,-500.0,0.00011798,2]
[350493831,1737925833883,-500.0,0.00011798,2]
[350493833,1737925833892,-500.0,0.00011798,2]
[350493835,1737925833902,-500.0,0.00011798,2]
[350493837,1737925833911,-500.0,0.00011798,2]
[350493839,1737925833920,-500.0,0.00011798,2]
[350493841,1737925833930,-495.748085,0.00011798,2]
[350493843,1737925833940,-583.49073327,0.00011798,2]
[350493845,1737925833949,-500.0,0.00011798,2]
[350493847,1737925833958,-539.69223618,0.00011798,2]
[350493849,1737925833967,-500.0,0.00011798,2]
[350493851,1737925833977,-500.0,0.00011798,2]
[350493853,1737925833986,-500.0,0.00011798,2]
[350493855,1737925833995,-500.0,0.00011798,2]
[350493857,1737925834005,-500.0,0.00011798,2]
[350493858,1737925834014,-500.0,0.00011798,2]
[350493860,1737925834023,-500.0,0.00011798,2]
[350493863,1737925834033,-500.0,0.00011798,2]
[350493864,1737925834042,-505.60848681,0.00011798,2]
[350493866,1737925834051,-500.0,0.00011798,2]
[350493868,1737925834061,-500.0,0.00011798,2]
[350493871,1737925834070,-500.0,0.00011798,2]
[350493872,1737925834079,-500.0,0.00011798,2]
[350493874,1737925834088,-252.05370559,0.00011798,2]
[350493876,1737925834098,-500.0,0.00011798,2]
[350493879,1737925834107,-500.0,0.00011798,2]
[350493880,1737925834116,-500.0,0.00011798,2]
[350493882,1737925834125,-500.0,0.00011798,2]
[350493885,1737925834134,-468.99022839,0.00011798,2]
[350493886,1737925834144,-500.0,0.00011798,2]
[350493889,1737925834153,-500.0,0.00011798,2]
[350493891,1737925834162,-500.0,0.00011798,2]
[350493893,1737925834171,-500.0,0.00011798,2]
[350493894,1737925834180,-500.0,0.00011798,2]
[350493896,1737925834190,-500.0,0.00011798,2]
[350493898,1737925834199,-500.0,0.00011798,2]
[350493901,1737925834209,-500.0,0.00011798,2]
[350493903,1737925834218,-507.09233453,0.00011798,2]
[350493905,1737925834228,-500.0,0.00011798,2]
[350493907,1737925834237,-500.0,0.00011798,2]
[350493909,1737925834246,-500.0,0.00011798,2]
[350493911,1737925834256,-500.0,0.00011798,2]
[350493913,1737925834268,-500.0,0.00011798,2]
[350493914,1737925834277,-500.0,0.00011798,2]
[350493916,1737925834286,-500.0,0.00011798,2]
[350493919,1737925834297,-500.0,0.00011798,2]
[350493920,1737925834307,-500.0,0.00011798,2]
[350493922,1737925834316,-500.0,0.00011798,2]
[350493925,1737925834326,-500.0,0.00011798,2]
[350493926,1737925834336,-500.0,0.00011798,2]
[350493929,1737925834346,-500.0,0.00011798,2]
[350493931,1737925834356,-500.0,0.00011798,2]
[350493932,1737925834366,-500.0,0.00011798,2]
[350493934,1737925834375,-500.0,0.00011798,2]
[350493936,1737925834384,-500.0,0.00011798,2]
[350493938,1737925834393,-500.0,0.00011798,2]
[350493940,1737925834402,-500.0,0.00011798,2]
[350493942,1737925834411,-291.78626207,0.00011798,2]
[350493944,1737925834420,-500.0,0.00011798,2]
[350493946,1737925834429,-290.89147074,0.00011798,2]
[350493948,1737925834439,-500.0,0.00011798,2]
[350493950,1737925834448,-500.0,0.00011798,2]
[350493952,1737925834458,-500.0,0.00011798,2]
[350493954,1737925834467,-500.0,0.00011798,2]
[350493956,1737925834476,-500.0,0.00011798,2]
[350493958,1737925834486,-500.0,0.00011798,2]
[350493960,1737925834495,-504.47477566,0.00011798,2]
[350493962,1737925834504,-500.0,0.00011798,2]
[350493964,1737925834513,-500.0,0.00011798,2]
[350493966,1737925834523,-500.0,0.00011798,2]
[350493968,1737925834533,-500.0,0.00011798,2]
[350493970,1737925834542,-500.0,0.00011798,2]
[350493972,1737925834551,-500.0,0.00011798,2]
[350493974,1737925834560,-500.0,0.00011798,2]
[350493976,1737925834569,-500.0,0.00011798,2]
[350493977,1737925834578,-500.0,0.00011798,2]
[350493978,1737925834587,-500.0,0.00011798,2]
[350493979,1737925834596,-500.0,0.00011798,2]
[350493980,1737925834605,-500.0,0.00011798,2]
[350493981,1737925834614,-218.90454424,0.00011798,2]
[350493982,1737925834623,-500.0,0.00011798,2]
[350493983,1737925834632,-500.0,0.00011798,2]
[350493984,1737925834642,-500.0,0.00011798,2]
[350493985,1737925834651,-500.0,0.00011798,2]
[350493986,1737925834660,-500.0,0.00011798,2]
[350493987,1737925834669,-500.0,0.00011798,2]
[350493988,1737925834679,-500.0,0.00011798,2]
[350493989,1737925834688,-500.0,0.00011798,2]
[350493990,1737925834697,-500.0,0.00011798,2]
[350493991,1737925834706,-500.0,0.00011798,2]
[350493992,1737925834715,-500.0,0.00011798,2]
[350493993,1737925834725,-500.0,0.00011798,2]
[350493994,1737925834734,-269.33802283,0.00011798,2]
[350493995,1737925834743,-500.0,0.00011798,2]
[350493996,1737925834752,-479.66805175,0.00011798,2]
[350493997,1737925834761,-500.0,0.00011798,2]
[350493998,1737925834770,-500.0,0.00011798,2]
[350493999,1737925834779,-500.0,0.00011798,2]
[350494000,1737925834788,-500.0,0.00011798,2]
[350494001,1737925834797,-500.0,0.00011798,2]
[350494002,1737925834806,-500.0,0.00011798,2]
[350494003,1737925834816,-506.95493617,0.00011798,2]
[350494004,1737925834825,-500.0,0.00011798,2]
[350494005,1737925834834,-500.0,0.00011798,2]
[350494006,1737925834844,-500.0,0.00011798,2]
[350494007,1737925834853,-500.0,0.00011798,2]
[350494008,1737925834862,-500.0,0.00011798,2]
[350494009,1737925834871,-500.0,0.00011798,2]
[350494010,1737925834881,-500.0,0.00011798,2]
[350494011,1737925834890,-500.0,0.00011798,2]
[350494012,1737925834899,-500.0,0.00011798,2]
[350494013,1737925834908,-500.0,0.00011798,2]
[350494014,1737925834917,-500.0,0.00011798,2]
[350494015,1737925834926,-500.0,0.00011798,2]
[350494016,1737925834935,-500.0,0.00011798,2]
[350494017,1737925834943,-500.0,0.00011798,2]
[350494018,1737925834953,-500.0,0.00011798,2]
[350494019,1737925834963,-500.0,0.00011798,2]
[350494020,1737925834971,-528.88950233,0.00011798,2]
[350494021,1737925834980,-500.0,0.00011798,2]
[350494022,1737925834989,-500.0,0.00011798,2]
[350494023,1737925834998,-500.0,0.00011798,2]
[350494024,1737925835007,-500.0,0.00011798,2]
[350494025,1737925835016,-500.0,0.00011798,2]
[350494026,1737925835025,-500.0,0.00011798,2]
[350494027,1737925835034,-500.0,0.00011798,2]
[350494028,1737925835043,-500.0,0.00011798,2]
[350494029,1737925835052,-500.0,0.00011798,2]
[350494030,1737925835061,-500.0,0.00011798,2]
[350494031,1737925835070,-500.0,0.00011798,2]
[350494032,1737925835079,-500.0,0.00011798,2]
[350494033,1737925835089,-500.0,0.00011798,2]
[350494034,1737925835098,-500.0,0.00011798,2]
[350494035,1737925835107,-500.0,0.00011798,2]
[350494036,1737925835116,-500.0,0.00011798,2]
[350494037,1737925835125,-500.0,0.00011798,2]
[350494038,1737925835135,-500.0,0.00011798,2]
[350494039,1737925835144,-500.0,0.00011798,2]
[350494040,1737925835153,-500.0,0.00011798,2]
[350494041,1737925835162,-500.0,0.00011798,2]
[350494042,1737925835171,-500.0,0.00011798,2]
[350494043,1737925835179,-500.0,0.00011798,2]
[350494044,1737925835189,-500.0,0.00011798,2]
[350494045,1737925835197,-500.0,0.00011798,2]
[350494046,1737925835207,-500.0,0.00011798,2]
[350494047,1737925835216,-500.0,0.00011798,2]
[350494048,1737925835225,-500.0,0.00011798,2]
[350494049,1737925835234,-500.0,0.00011798,2]
[350494050,1737925835243,-500.0,0.00011798,2]
[350494051,1737925835252,-500.0,0.00011798,2]
[350494052,1737925835266,-500.0,0.00011798,2]
[350494053,1737925835275,-500.0,0.00011798,2]
[350494054,1737925835283,-502.87755486,0.00011798,2]
[350494055,1737925835293,-500.0,0.00011798,2]
[350494056,1737925835303,-500.0,0.00011798,2]
[350494057,1737925835312,-500.0,0.00011798,2]
[350494058,1737925835321,-500.0,0.00011798,2]
[350494059,1737925835330,-500.0,0.00011798,2]
[350494060,1737925835342,-500.0,0.00011798,2]
[350494061,1737925835351,-500.0,0.00011798,2]
[350494062,1737925835361,-500.0,0.00011798,2]
[350494063,1737925835369,-500.0,0.00011798,2]
[350494064,1737925835378,-500.0,0.00011798,2]
[350494065,1737925835387,-500.0,0.00011798,2]
[350494066,1737925835397,-1000.0,0.00011798,2]
[350494067,1737925835406,-500.0,0.00011798,2]
[350494068,1737925835415,-150.9431833,0.00011798,2]
[350494069,1737925835424,-500.0,0.00011798,2]
[350494070,1737925835433,-500.0,0.00011798,2]
[350494071,1737925835442,-500.0,0.00011798,2]
[350494072,1737925835451,-500.0,0.00011798,2]
[350494073,1737925835460,-500.0,0.00011798,2]
[350494074,1737925835470,-500.0,0.00011798,2]
[350494075,1737925835479,-500.0,0.00011798,2]
[350494076,1737925835488,-500.0,0.00011798,2]
[350494077,1737925835497,-500.0,0.00011798,2]
[350494078,1737925835506,-500.0,0.00011798,2]
[350494079,1737925835515,-500.0,0.00011798,2]
[350494080,1737925835525,-500.0,0.00011798,2]
[350494081,1737925835534,-500.0,0.00011798,2]
[350494082,1737925835543,-500.0,0.00011798,2]
[350494083,1737925835552,-500.0,0.00011798,2]
[350494084,1737925835564,-500.0,0.00011798,2]
[350494085,1737925835577,-500.0,0.00011798,2]
[350494086,1737925835589,-500.0,0.00011798,2]
[350494087,1737925835600,-500.0,0.00011798,2]